[Event "Swedish U16 Team Championship 2019 - Final"]
[Site "Molnlycke Kulturhus, Biblioteksgatan 2, Molnlycke, Sweden"]
[Date "2019.08.17"]
[Round "3.9"]
[White "Strom-Engdahl, Alexander"]
[Black "Grahn, Vidar"]
[Result "1/2-1/2"]
[TimeControl "90 minutes + 30 seconds per move from move one."]
[WhiteElo "1858"]
[BlackElo "1898"]

1. c4 {[%clk 01:30:00]} {[%emt 00:00:59]} Nf6 {[%clk 01:30:53]} {[%emt
00:00:07]} 2. g3 {[%clk 01:30:02]} {[%emt 00:00:28]} e6 {[%clk 01:31:02]}
{[%emt 00:00:22]} 3. Bg2 {[%clk 01:29:59]} {[%emt 00:00:33]} d5 {[%clk
01:31:13]} {[%emt 00:00:19]} 4. Nf3 {[%clk 01:29:24]} {[%emt 00:01:04]} c6
{[%clk 01:26:54]} {[%emt 00:04:51]} 5. b3 {[%clk 01:23:57]} {[%emt 00:05:57]}
Bd6 {[%clk 01:25:24]} {[%emt 00:01:59]} 6. Bb2 {[%clk 01:19:26]} {[%emt
00:05:01]} Nbd7 {[%clk 01:24:41]} {[%emt 00:01:13]} 7. d4 {[%clk 01:16:49]}
{[%emt 00:03:08]} Ne4 {[%clk 01:21:00]} {[%emt 00:04:11]} 8. O-O {[%clk
01:09:56]} {[%emt 00:07:22]} f5 {[%clk 01:18:35]} {[%emt 00:02:55]} 9. Ne5
{[%clk 01:02:57]} {[%emt 00:07:30]} O-O {[%clk 01:17:48]} {[%emt 00:01:16]} 10.
e3 {[%clk 01:02:45]} {[%emt 00:00:43]} Qg5 {[%clk 01:04:54]} {[%emt 00:13:23]}
11. f4 {[%clk 00:55:17]} {[%emt 00:07:59]} Qe7 {[%clk 01:04:29]} {[%emt
00:00:54]} 12. Nc3 {[%clk 00:47:59]} {[%emt 00:07:49]} Ndf6 {[%clk 01:03:34]}
{[%emt 00:01:24]} 13. Bf3 {[%clk 00:43:14]} {[%emt 00:05:16]} Nxc3 {[%clk
00:57:52]} {[%emt 00:06:12]} 14. Bxc3 {[%clk 00:43:30]} {[%emt 00:00:14]} Ne4
{[%clk 00:57:38]} {[%emt 00:00:44]} 15. Bxe4 {[%clk 00:38:59]} {[%emt
00:05:01]} fxe4 {[%clk 00:57:26]} {[%emt 00:00:42]} 16. Qg4 {[%clk 00:35:01]}
{[%emt 00:04:28]} Bxe5 {[%clk 00:55:18]} {[%emt 00:02:39]} 17. fxe5 {[%clk
00:34:54]} {[%emt 00:00:37]} Bd7 {[%clk 00:54:13]} {[%emt 00:01:35]} 18. a3
{[%clk 00:27:13]} {[%emt 00:08:11]} Rxf1+ {[%clk 00:51:02]} {[%emt 00:03:42]}
19. Kxf1 {[%clk 00:27:41]} {[%emt 00:00:02]} Rf8+ {[%clk 00:50:53]} {[%emt
00:00:38]} 20. Kg2 {[%clk 00:25:41]} {[%emt 00:02:30]} Qf7 {[%clk 00:50:50]}
{[%emt 00:00:32]} 21. Qe2 {[%clk 00:25:57]} {[%emt 00:00:16]} Qf3+ {[%clk
00:49:29]} {[%emt 00:01:50]} 22. Qxf3 {[%clk 00:26:17]} {[%emt 00:00:11]} Rxf3
{[%clk 00:49:53]} {[%emt 00:00:05]} 23. Bd2 {[%clk 00:23:38]} {[%emt 00:03:09]}
g5 {[%clk 00:47:02]} {[%emt 00:03:21]} 24. c5 {[%clk 00:21:59]} {[%emt
00:02:10]} 1/2-1/2

[Event "Swedish U16 Team Championship 2019 - Final"]
[Site "Molnlycke Kulturhus, Biblioteksgatan 2, Molnlycke, Sweden"]
[Date "2019.08.17"]
[Round "3.10"]
[White "Bergqvist, Gustav 2004"]
[Black "Lindholm, Marcus"]
[Result "1-0"]
[TimeControl "90 minutes + 30 seconds per move from move one."]
[WhiteElo "1833"]
[BlackElo "1412"]

1. d4 {[%clk 01:30:57]} {[%emt 00:00:02]} d5 {[%clk 01:30:51]} {[%emt
00:00:09]} 2. Nf3 {[%clk 01:31:24]} {[%emt 00:00:04]} Nf6 {[%clk 01:30:54]}
{[%emt 00:00:27]} 3. e3 {[%clk 01:31:43]} {[%emt 00:00:11]} Bf5 {[%clk
01:30:33]} {[%emt 00:00:50]} 4. Bd3 {[%clk 01:32:05]} {[%emt 00:00:08]} Bxd3
{[%clk 01:29:42]} {[%emt 00:01:21]} 5. Qxd3 {[%clk 01:32:32]} {[%emt 00:00:02]}
Nc6 {[%clk 01:29:01]} {[%emt 00:01:12]} 6. O-O {[%clk 01:28:59]} {[%emt
00:04:02]} g6 {[%clk 01:27:17]} {[%emt 00:02:16]} 7. b3 {[%clk 01:26:44]}
{[%emt 00:02:44]} Bg7 {[%clk 01:25:44]} {[%emt 00:02:03]} 8. Bb2 {[%clk
01:20:23]} {[%emt 00:06:50]} O-O {[%clk 01:25:43]} {[%emt 00:00:31]} 9. a3
{[%clk 01:16:38]} {[%emt 00:04:15]} Re8 {[%clk 01:22:21]} {[%emt 00:03:54]} 10.
Nbd2 {[%clk 01:16:11]} {[%emt 00:00:57]} Qd7 {[%clk 01:14:34]} {[%emt
00:08:17]} 11. c4 {[%clk 01:13:05]} {[%emt 00:03:35]} e6 {[%clk 01:12:01]}
{[%emt 00:03:04]} 12. b4 {[%clk 01:12:13]} {[%emt 00:01:22]} dxc4 {[%clk
01:09:22]} {[%emt 00:03:09]} 13. Nxc4 {[%clk 01:10:39]} {[%emt 00:02:03]} e5
{[%clk 01:08:44]} {[%emt 00:01:09]} 14. b5 {[%clk 01:08:25]} {[%emt 00:02:44]}
e4 {[%clk 01:08:34]} {[%emt 00:00:40]} 15. bxc6 {[%clk 01:08:19]} {[%emt
00:00:34]} Qxc6 {[%clk 01:05:36]} {[%emt 00:03:29]} 16. Nfe5 {[%clk 01:08:06]}
{[%emt 00:00:43]} exd3 {[%clk 01:02:44]} {[%emt 00:03:23]} 17. Nxc6 {[%clk
01:08:25]} {[%emt 00:00:11]} bxc6 {[%clk 01:02:53]} {[%emt 00:00:20]} 18. Rfd1
{[%clk 01:07:13]} {[%emt 00:01:41]} Ne4 {[%clk 00:59:16]} {[%emt 00:04:08]} 19.
Rxd3 {[%clk 01:02:10]} {[%emt 00:05:31]} Nd6 {[%clk 00:57:49]} {[%emt
00:01:58]} 20. Nxd6 {[%clk 01:01:17]} {[%emt 00:01:23]} cxd6 {[%clk 00:58:04]}
{[%emt 00:00:15]} 21. a4 {[%clk 00:49:05]} {[%emt 00:12:42]} c5 {[%clk
00:56:24]} {[%emt 00:02:10]} 22. Rc1 {[%clk 00:40:17]} {[%emt 00:09:18]} Rac8
{[%clk 00:52:15]} {[%emt 00:04:38]} 23. Kf1 {[%clk 00:33:09]} {[%emt 00:07:38]}
c4 {[%clk 00:48:36]} {[%emt 00:04:10]} 24. Rdc3 {[%clk 00:28:24]} {[%emt
00:05:15]} d5 {[%clk 00:47:46]} {[%emt 00:01:21]} 25. Ba3 {[%clk 00:27:50]}
{[%emt 00:01:03]} Bh6 {[%clk 00:45:15]} {[%emt 00:03:03]} 26. Ke2 {[%clk
00:22:20]} {[%emt 00:06:00]} Rb8 {[%clk 00:39:53]} {[%emt 00:05:50]} 27. Bc5
{[%clk 00:22:25]} {[%emt 00:00:26]} Rb7 {[%clk 00:31:42]} {[%emt 00:08:40]} 28.
a5 {[%clk 00:19:03]} {[%emt 00:03:53]} Bf8 {[%clk 00:27:25]} {[%emt 00:04:47]}
29. Bxf8 {[%clk 00:16:22]} {[%emt 00:03:12]} Kxf8 {[%clk 00:26:48]} {[%emt
00:01:06]} 30. Ra3 {[%clk 00:15:34]} {[%emt 00:01:18]} Reb8 {[%clk 00:25:28]}
{[%emt 00:01:50]} 31. e4 {[%clk 00:15:44]} {[%emt 00:00:21]} Re8 {[%clk
00:24:07]} {[%emt 00:01:51]} 32. e5 {[%clk 00:15:15]} {[%emt 00:00:58]} Rb2+
{[%clk 00:21:35]} {[%emt 00:03:00]} 33. Ke1 {[%clk 00:12:32]} {[%emt 00:03:14]}
f6 {[%clk 00:19:58]} {[%emt 00:02:08]} 34. Rf3 {[%clk 00:12:50]} {[%emt
00:00:12]} f5 {[%clk 00:17:48]} {[%emt 00:02:41]} 35. g4 {[%clk 00:13:04]}
{[%emt 00:00:15]} Ke7 {[%clk 00:17:14]} {[%emt 00:01:04]} 36. gxf5 {[%clk
00:13:16]} {[%emt 00:00:19]} gxf5 {[%clk 00:15:40]} {[%emt 00:02:03]} 37. Rxf5
{[%clk 00:12:23]} {[%emt 00:01:23]} Ra2 {[%clk 00:12:31]} {[%emt 00:03:39]} 38.
Rb1 {[%emt 00:00:15]} c3 39. Rb7+ Kd8 40. Rff7 Rb2 41. Rxa7 Kc8 42. Ra8+ Rb8 43.
Rxb8+ {[%clk 00:12:38]} 1-0

[Event "Swedish U16 Team Championship 2019 - Final"]
[Site "Molnlycke Kulturhus, Biblioteksgatan 2, Molnlycke, Sweden"]
[Date "2019.08.17"]
[Round "3.11"]
[White "Ghaderi, Roshan"]
[Black "Tran, Alva Ling"]
[Result "0-1"]
[TimeControl "90 minutes + 30 seconds per move from move one."]
[WhiteElo "1379"]
[BlackElo "1735"]

1. e4 {[%clk 01:30:56]} {[%emt 00:00:03]} c5 {[%clk 01:30:54]} {[%emt
00:00:06]} 2. Nf3 {[%clk 01:31:19]} {[%emt 00:00:06]} e6 {[%clk 01:31:13]}
{[%emt 00:00:12]} 3. d4 {[%clk 01:31:34]} {[%emt 00:00:16]} cxd4 {[%clk
01:31:33]} {[%emt 00:00:10]} 4. Nxd4 {[%clk 01:31:57]} {[%emt 00:00:06]} a6
{[%clk 01:31:42]} {[%emt 00:00:22]} 5. Nc3 {[%clk 01:32:04]} {[%emt 00:00:22]}
Qc7 {[%clk 01:31:40]} {[%emt 00:00:32]} 6. g3 {[%clk 01:31:01]} {[%emt
00:01:33]} Nf6 {[%clk 01:30:29]} {[%emt 00:01:41]} 7. Bg2 {[%clk 01:30:55]}
{[%emt 00:00:35]} Bb4 {[%clk 01:27:09]} {[%emt 00:03:50]} 8. Bd2 {[%clk
01:30:56]} {[%emt 00:00:29]} Nc6 {[%clk 01:26:32]} {[%emt 00:01:08]} 9. Nxc6
{[%clk 01:27:39]} {[%emt 00:03:46]} dxc6 {[%clk 01:26:36]} {[%emt 00:00:26]} 10.
a3 {[%clk 01:26:19]} {[%emt 00:01:50]} Bc5 {[%clk 01:25:35]} {[%emt 00:01:31]}
11. O-O {[%clk 01:22:22]} {[%emt 00:04:27]} Bd7 {[%clk 01:12:42]} {[%emt
00:13:24]} 12. Qc1 {[%clk 00:58:28]} {[%emt 00:24:23]} h5 {[%clk 00:57:04]}
{[%emt 00:16:07]} 13. h4 {[%clk 00:58:21]} {[%emt 00:00:37]} Qxg3 {[%emt
00:21:18]} 14. Bg5 {[%clk 00:58:09]} {[%emt 00:00:41]} Ng4 {[%clk 00:34:10]}
{[%emt 00:02:38]} 15. Qf4 {[%clk 00:56:12]} {[%emt 00:02:27]} Qxf4 {[%clk
00:32:58]} {[%emt 00:01:42]} 16. Bxf4 {[%clk 00:55:26]} {[%emt 00:01:15]} e5
{[%clk 00:33:16]} {[%emt 00:00:14]} 17. Bg3 {[%clk 00:54:10]} {[%emt 00:01:44]}
O-O-O {[%clk 00:31:43]} {[%emt 00:02:04]} 18. Bh3 {[%clk 00:54:00]} {[%emt
00:00:40]} Rhe8 {[%clk 00:31:09]} {[%emt 00:01:04]} 19. Na4 {[%clk 00:39:44]}
{[%emt 00:14:47]} Ba7 {[%clk 00:26:10]} {[%emt 00:05:29]} 20. Rab1 {[%clk
00:37:29]} {[%emt 00:02:44]} Nf6 {[%clk 00:18:53]} {[%emt 00:07:49]} 21. Bxd7+
{[%clk 00:35:11]} {[%emt 00:02:47]} Rxd7 {[%clk 00:18:18]} {[%emt 00:01:06]} 22.
Rfe1 {[%clk 00:35:08]} {[%emt 00:00:30]} Rd2 {[%clk 00:16:44]} {[%emt
00:02:06]} 23. Rbc1 {[%clk 00:34:24]} {[%emt 00:01:13]} Ng4 {[%clk 00:15:55]}
{[%emt 00:01:20]} 24. Rf1 {[%clk 00:34:09]} {[%emt 00:00:44]} Red8 {[%clk
00:14:56]} {[%emt 00:01:29]} 25. Nc3 {[%clk 00:26:31]} {[%emt 00:08:08]} Bd4
{[%clk 00:12:27]} {[%emt 00:02:59]} 26. Nb1 {[%clk 00:22:32]} {[%emt 00:04:28]}
Re2 {[%clk 00:10:08]} {[%emt 00:02:50]} 27. Nc3 {[%clk 00:20:57]} {[%emt
00:02:04]} Bxc3 {[%clk 00:09:53]} {[%emt 00:00:45]} 28. bxc3 {[%clk 00:21:20]}
{[%emt 00:00:07]} Rdd2 {[%clk 00:08:00]} {[%emt 00:02:23]} 29. a4 {[%clk
00:20:26]} {[%emt 00:01:23]} Rxc2 {[%clk 00:07:03]} {[%emt 00:01:28]} 30. Rxc2
{[%clk 00:20:48]} {[%emt 00:00:08]} Rxc2 {[%clk 00:07:28]} {[%emt 00:00:04]} 31.
f3 {[%clk 00:21:08]} {[%emt 00:00:10]} Ne3 {[%clk 00:07:36]} {[%emt 00:00:22]}
0-1

[Event "Swedish U16 Team Championship 2019 - Final"]
[Site "Molnlycke Kulturhus, Biblioteksgatan 2, Molnlycke, Sweden"]
[Date "2019.08.17"]
[Round "3.12"]
[White "Isaksson, Philip"]
[Black "Storme, Joel"]
[Result "1-0"]
[TimeControl "90 minutes + 30 seconds per move from move one."]
[WhiteElo "1675"]
[BlackElo "1371"]

1. e4 {[%clk 01:30:59]} d5 {[%clk 01:30:52]} {[%emt 00:00:08]} 2. exd5 {[%clk
01:31:24]} {[%emt 00:00:05]} Qxd5 {[%clk 01:31:17]} {[%emt 00:00:05]} 3. d4
{[%clk 01:31:51]} {[%emt 00:00:03]} Nf6 {[%clk 01:31:24]} {[%emt 00:00:23]} 4.
Nf3 {[%clk 01:31:28]} {[%emt 00:00:53]} Bf5 {[%clk 01:31:13]} {[%emt 00:00:41]}
5. Be2 {[%clk 01:29:24]} {[%emt 00:02:34]} Nbd7 {[%clk 01:29:00]} {[%emt
00:02:42]} 6. c4 {[%clk 01:27:15]} {[%emt 00:02:40]} Qd6 {[%clk 01:25:56]}
{[%emt 00:03:34]} 7. Nc3 {[%clk 01:25:45]} {[%emt 00:02:00]} c6 {[%clk
01:25:05]} {[%emt 00:01:20]} 8. O-O {[%clk 01:19:56]} {[%emt 00:06:19]} O-O-O
{[%clk 01:22:07]} {[%emt 00:03:29]} 9. Qa4 {[%clk 01:17:23]} {[%emt 00:03:03]}
Qb8 {[%clk 01:16:38]} {[%emt 00:05:59]} 10. b4 {[%clk 01:13:28]} {[%emt
00:04:25]} Ne4 {[%clk 01:13:38]} {[%emt 00:03:30]} 11. Nxe4 {[%clk 01:08:28]}
{[%emt 00:05:29]} Bxe4 {[%clk 01:13:01]} {[%emt 00:01:08]} 12. Be3 {[%clk
01:07:43]} {[%emt 00:01:15]} e6 {[%clk 01:11:39]} {[%emt 00:01:52]} 13. Rfc1
{[%clk 01:02:52]} {[%emt 00:05:19]} a6 {[%clk 01:09:35]} {[%emt 00:02:35]} 14.
Nd2 {[%clk 00:55:40]} {[%emt 00:07:42]} Bg6 {[%clk 01:08:11]} {[%emt 00:01:53]}
15. b5 {[%clk 00:51:57]} {[%emt 00:04:15]} Qc7 {[%clk 01:06:32]} {[%emt
00:02:08]} 16. bxa6 {[%clk 00:50:01]} {[%emt 00:02:26]} bxa6 {[%clk 01:05:39]}
{[%emt 00:01:23]} 17. Qxa6+ {[%clk 00:47:39]} {[%emt 00:02:52]} Qb7 {[%clk
01:05:54]} {[%emt 00:00:14]} 18. Qxb7+ {[%clk 00:43:24]} {[%emt 00:04:45]} Kxb7
{[%clk 01:06:15]} {[%emt 00:00:09]} 19. d5 {[%clk 00:39:36]} {[%emt 00:04:19]}
exd5 {[%clk 01:05:02]} {[%emt 00:01:44]} 20. cxd5 {[%clk 00:39:59]} {[%emt
00:00:07]} cxd5 {[%clk 01:05:24]} {[%emt 00:00:08]} 21. Bf4 {[%clk 00:39:46]}
{[%emt 00:00:42]} Rc8 {[%clk 01:04:56]} {[%emt 00:00:58]} 22. Ba6+ {[%clk
00:39:37]} {[%emt 00:00:39]} Kxa6 {[%clk 01:05:02]} {[%emt 00:00:24]} 23. Rxc8
{[%clk 00:39:52]} {[%emt 00:00:15]} Nb6 {[%clk 01:03:40]} {[%emt 00:01:52]} 24.
Rb8 {[%clk 00:38:49]} {[%emt 00:01:30]} Ka7 {[%clk 01:01:22]} {[%emt 00:02:50]}
25. a4 {[%clk 00:35:13]} {[%emt 00:04:06]} Bf5 {[%clk 00:58:38]} {[%emt
00:03:15]} 26. a5 {[%clk 00:32:23]} {[%emt 00:03:21]} Nd7 {[%clk 00:58:29]}
{[%emt 00:00:38]} 27. Rd8 {[%clk 00:32:23]} {[%emt 00:00:29]} g6 {[%clk
00:58:09]} {[%emt 00:00:52]} 28. Be3+ {[%clk 00:29:47]} {[%emt 00:03:06]} Kb7
{[%clk 00:56:45]} {[%emt 00:01:54]} 29. a6+ {[%clk 00:29:45]} {[%emt 00:00:32]}
Kc7 {[%clk 00:56:42]} {[%emt 00:00:33]} 30. a7 {[%clk 00:29:29]} {[%emt
00:00:46]} 1-0

[Event "Swedish U16 Team Championship 2019 - Final"]
[Site "Molnlycke Kulturhus, Biblioteksgatan 2, Molnlycke, Sweden"]
[Date "2019.08.17"]
[Round "3.13"]
[White "Kucuksari, Kaan"]
[Black "Rasmusson, Max"]
[Result "1-0"]
[TimeControl "90 minutes + 30 seconds per move from move one."]
[WhiteTitle "FM"]
[WhiteElo "2286"]
[BlackElo "1624"]

1. d4 {[%clk 01:30:59]} Nf6 {[%clk 01:30:51]} {[%emt 00:00:09]} 2. Nf3 {[%clk
01:31:24]} {[%emt 00:00:05]} e6 {[%clk 01:31:06]} {[%emt 00:00:15]} 3. c4
{[%clk 01:31:42]} {[%emt 00:00:11]} d5 {[%clk 01:31:23]} {[%emt 00:00:13]} 4.
g3 {[%clk 01:32:08]} {[%emt 00:00:04]} c6 {[%clk 01:31:19]} {[%emt 00:00:34]} 5.
Qc2 {[%clk 01:32:31]} {[%emt 00:00:07]} Be7 {[%clk 01:31:09]} {[%emt 00:00:40]}
6. Bg2 {[%clk 01:32:54]} {[%emt 00:00:06]} Nbd7 {[%clk 01:31:19]} {[%emt
00:00:21]} 7. Nbd2 {[%clk 01:33:07]} {[%emt 00:00:16]} O-O {[%clk 01:31:03]}
{[%emt 00:00:47]} 8. O-O {[%clk 01:33:31]} {[%emt 00:00:06]} dxc4 {[%clk
01:28:02]} {[%emt 00:03:31]} 9. Nxc4 {[%clk 01:32:19]} {[%emt 00:01:41]} Nb6
{[%clk 01:23:37]} {[%emt 00:04:56]} 10. Nce5 {[%clk 01:27:20]} {[%emt
00:05:29]} Bd7 {[%clk 01:15:11]} {[%emt 00:08:55]} 11. e4 {[%clk 01:27:26]}
{[%emt 00:00:24]} Rc8 {[%clk 01:14:14]} {[%emt 00:01:28]} 12. Be3 {[%clk
01:25:14]} {[%emt 00:02:42]} h5 {[%clk 01:08:03]} {[%emt 00:06:41]} 13. a4
{[%clk 01:22:33]} {[%emt 00:03:11]} Ng4 {[%clk 01:01:15]} {[%emt 00:07:18]} 14.
Nxg4 {[%clk 01:19:05]} {[%emt 00:03:58]} hxg4 {[%clk 01:01:18]} {[%emt
00:00:27]} 15. Ne5 {[%clk 01:19:30]} {[%emt 00:00:05]} f5 {[%clk 00:43:28]}
{[%emt 00:18:20]} 16. a5 {[%clk 01:19:35]} {[%emt 00:00:25]} Na8 {[%clk
00:43:28]} {[%emt 00:00:30]} 17. exf5 {[%clk 01:16:57]} {[%emt 00:03:08]} exf5
{[%clk 00:43:56]} {[%emt 00:00:01]} 18. Qb3+ {[%clk 01:17:12]} {[%emt
00:00:14]} Kh7 {[%clk 00:44:01]} {[%emt 00:00:25]} 19. Qxb7 {[%clk 01:16:55]}
{[%emt 00:00:47]} Qc7 {[%clk 00:41:58]} {[%emt 00:02:33]} 20. Qxc7 {[%clk
01:16:28]} {[%emt 00:00:57]} Rxc7 {[%clk 00:42:27]} {[%emt 00:00:02]} 21. Nxd7
{[%clk 01:16:56]} {[%emt 00:00:01]} Rxd7 {[%clk 00:42:56]} {[%emt 00:00:02]} 22.
Bxc6 {[%clk 01:17:24]} {[%emt 00:00:02]} Rdd8 {[%clk 00:42:00]} {[%emt
00:01:26]} 23. d5 {[%clk 01:16:52]} {[%emt 00:01:02]} Bf6 {[%clk 00:41:40]}
{[%emt 00:00:49]} 24. Bxa7 {[%clk 01:11:21]} {[%emt 00:06:02]} Bxb2 {[%clk
00:40:42]} {[%emt 00:01:27]} 25. Ra4 {[%clk 01:07:22]} {[%emt 00:04:29]} Rf7
{[%clk 00:38:34]} {[%emt 00:02:39]} 26. Be3 {[%clk 01:05:59]} {[%emt 00:01:53]}
Nc7 {[%clk 00:37:12]} {[%emt 00:01:52]} 27. a6 {[%clk 01:06:13]} {[%emt
00:00:16]} 1-0

[Event "Swedish U16 Team Championship 2019 - Final"]
[Site "Molnlycke Kulturhus, Biblioteksgatan 2, Molnlycke, Sweden"]
[Date "2019.08.17"]
[Round "3.14"]
[White "Holmquist, Oliver 2006"]
[Black "Bensryd, Hampus"]
[Result "0-1"]
[TimeControl "90 minutes + 30 seconds per move from move one."]
[WhiteElo "1137"]
[BlackElo "1907"]

1. e4 {[%clk 01:30:57]} {[%emt 00:00:02]} e5 {[%clk 01:30:50]} {[%emt
00:00:10]} 2. Nf3 {[%clk 01:31:20]} {[%emt 00:00:08]} Nc6 {[%clk 01:31:12]}
{[%emt 00:00:08]} 3. Bc4 {[%clk 01:31:33]} {[%emt 00:00:18]} Bc5 {[%clk
01:31:14]} {[%emt 00:00:27]} 4. d3 {[%clk 01:31:28]} {[%emt 00:00:36]} Nf6
{[%clk 01:31:14]} {[%emt 00:00:29]} 5. Bg5 {[%clk 01:31:39]} {[%emt 00:00:19]}
d6 {[%clk 01:30:14]} {[%emt 00:01:29]} 6. h3 {[%clk 01:30:33]} {[%emt
00:01:36]} h6 {[%clk 01:26:34]} {[%emt 00:04:10]} 7. Bh4 {[%clk 01:30:12]}
{[%emt 00:00:52]} g5 {[%clk 01:25:24]} {[%emt 00:01:39]} 8. Bg3 {[%clk
01:30:07]} {[%emt 00:00:34]} Ne7 {[%clk 01:25:36]} {[%emt 00:00:19]} 9. Nc3
{[%clk 01:29:07]} {[%emt 00:01:30]} a6 {[%clk 01:25:04]} {[%emt 00:01:02]} 10.
Nd2 {[%clk 01:24:39]} {[%emt 00:04:58]} Ng6 {[%clk 01:24:51]} {[%emt 00:00:43]}
11. Qf3 {[%clk 01:18:47]} {[%emt 00:06:11]} c6 {[%clk 01:18:56]} {[%emt
00:06:36]} 12. O-O-O {[%clk 01:16:56]} {[%emt 00:02:21]} b5 {[%clk 01:18:11]}
{[%emt 00:01:15]} 13. Bb3 {[%clk 01:16:19]} {[%emt 00:01:07]} a5 {[%clk
01:17:16]} {[%emt 00:01:25]} 14. a3 {[%clk 01:15:48]} {[%emt 00:01:01]} b4
{[%clk 01:16:25]} {[%emt 00:01:20]} 15. Na4 {[%clk 01:15:36]} {[%emt 00:00:43]}
Bd4 {[%clk 01:13:44]} {[%emt 00:03:11]} 16. Bc4 {[%clk 01:08:49]} {[%emt
00:07:16]} O-O {[%clk 01:00:25]} {[%emt 00:13:49]} 17. Qe2 {[%clk 01:04:33]}
{[%emt 00:04:47]} bxa3 {[%clk 00:57:44]} {[%emt 00:03:10]} 18. bxa3 {[%clk
01:04:38]} {[%emt 00:00:25]} d5 {[%clk 00:57:20]} {[%emt 00:00:54]} 19. Bb3
{[%clk 00:59:30]} {[%emt 00:05:39]} Qe7 {[%clk 00:56:21]} {[%emt 00:01:27]} 20.
Nb1 {[%clk 00:56:16]} {[%emt 00:03:45]} dxe4 {[%clk 00:50:35]} {[%emt
00:06:16]} 21. dxe4 {[%clk 00:56:12]} {[%emt 00:00:35]} Ba6 {[%clk 00:50:16]}
{[%emt 00:00:49]} 22. Qe1 {[%clk 00:52:25]} {[%emt 00:04:10]} Nh5 {[%clk
00:47:14]} {[%emt 00:03:40]} 23. c3 {[%clk 00:46:12]} {[%emt 00:06:42]} Ba7
{[%clk 00:44:11]} {[%emt 00:03:33]} 24. Rd2 {[%clk 00:41:28]} {[%emt 00:05:05]}
Nhf4 {[%clk 00:43:29]} {[%emt 00:01:22]} 25. Bxf4 {[%clk 00:35:32]} {[%emt
00:06:25]} Nxf4 {[%clk 00:43:15]} {[%emt 00:00:45]} 26. c4 {[%clk 00:35:19]}
{[%emt 00:00:44]} Rfd8 {[%clk 00:41:25]} {[%emt 00:02:19]} 27. Qf1 {[%clk
00:31:06]} {[%emt 00:04:43]} Rxd2 {[%clk 00:41:09]} {[%emt 00:00:46]} 28. Kxd2
{[%clk 00:31:29]} {[%emt 00:00:07]} Qd6+ {[%clk 00:37:42]} {[%emt 00:03:57]} 29.
Kc2 {[%clk 00:29:23]} {[%emt 00:02:37]} Qd4 {[%clk 00:36:27]} {[%emt 00:01:45]}
30. Nd2 {[%clk 00:20:13]} {[%emt 00:09:41]} Rd8 {[%clk 00:35:24]} {[%emt
00:01:32]} 31. Qe1 {[%clk 00:14:41]} {[%emt 00:06:02]} Qd3+ {[%clk 00:34:43]}
{[%emt 00:01:11]} 32. Kc1 {[%clk 00:12:48]} {[%emt 00:02:23]} Ne2+ {[%clk
00:35:00]} {[%emt 00:00:14]} 33. Kd1 {[%clk 00:13:11]} {[%emt 00:00:07]} Qxb3+
{[%clk 00:35:18]} {[%emt 00:00:12]} 34. Kxe2 {[%clk 00:13:22]} {[%emt
00:00:19]} Bxc4+ {[%clk 00:35:34]} {[%emt 00:00:14]} 35. Nxc4 {[%clk 00:13:01]}
{[%emt 00:00:51]} Qxc4+ {[%clk 00:36:01]} {[%emt 00:00:03]} 36. Kf3 {[%clk
00:13:15]} {[%emt 00:00:16]} Rd3+ {[%clk 00:36:07]} {[%emt 00:00:23]} 37. Kg4
{[%clk 00:13:32]} {[%emt 00:00:14]} Qe6+ {[%clk 00:36:27]} {[%emt 00:00:09]} 38.
Kh5 {[%clk 00:13:44]} {[%emt 00:00:19]} Qg6+ {[%clk 00:36:51]} {[%emt
00:00:05]} 39. Kg4 {[%clk 00:13:54]} {[%emt 00:00:21]} h5# {[%clk 00:37:16]}
{[%emt 00:00:04]} 0-1